fUSD/lending_fUSD_20260610
["ID","MTS","AMOUNT","RATE_DAILY","PERIOD"]
[424640269,1781025069000,-500.0,0.000301,7]
[424640268,1781025069000,-500.0,0.000301,7]
[424640274,1781025069000,-500.0,0.000301,7]
[424640267,1781025069000,-500.0,0.000301,7]
[424640275,1781025069000,-500.0,0.000301,7]
[424640277,1781025069000,-500.0,0.000301,7]
[424640281,1781025069000,-12500.0,0.00030125,2]
[424640283,1781025069000,-1094.97061881,0.0003013,2]
[424640280,1781025069000,-2199.17,0.000301,2]
[424640276,1781025069000,-500.0,0.000301,7]
[424640303,1781025070000,-352.81088306,0.00026384,2]
[424640295,1781025070000,-776.30000002,0.00026384,2]
[424640296,1781025070000,-215.89329178,0.000216,30]
[424640297,1781025070000,-215.89329178,0.00025,7]
[424640299,1781025070000,-24.58866146,0.00026384,2]
[424640298,1781025070000,-1137.07475498,0.00026384,2]
[424640300,1781025070000,-1888.78609354,0.00026384,2]
[424640305,1781025070000,-1034.2653812,0.00026384,2]
[424640301,1781025070000,-552.94781922,0.00026384,2]
[424640306,1781025070000,-879.1093788,0.00026384,2]
[424640302,1781025070000,-315.40087021,0.00026384,2]
[424640304,1781025070000,-692.21518251,0.00026384,2]
[424640308,1781025070000,-215.89329178,0.0003,3]
[424640309,1781025070000,-1689.10403764,0.0003013,7]
[424640310,1781025070000,-1408.76492655,0.0001399,2]
[424640311,1781025070000,-481.0271002,0.0001399,2]
[424640307,1781025070000,-215.89329178,0.00028,10]
[424640313,1781025071000,-41460.56939987,0.0003013,7]
[424640312,1781025071000,-58110.20797325,0.0001399,2]
[424640314,1781025071000,-215.89329178,0.0003,30]
[424640316,1781025071000,-6618.02726195,0.0003013,7]
[424640317,1781025071000,-776.84,0.00026458,10]
[424640319,1781025071000,-215.89329178,0.00029,7]
[424640318,1781025071000,-458.16,0.00026458,10]
[424640315,1781025071000,-423.03109366,0.0003013,7]
[424640322,1781025071000,-517.68729662,0.0003013,7]
[424640320,1781025071000,-7.52670822,0.0003,10]
[424640327,1781025071000,-600.0,0.0003013,7]
[424640328,1781025071000,-957.5262027,0.0003013,7]
[424640321,1781025071000,-208.36658356,0.0003,10]
[424640324,1781025071000,-820.0,0.00027137,2]
[424640325,1781025071000,-1222.76391189,0.0003013,7]
[424640326,1781025071000,-914.96776273,0.0003013,7]
[424640323,1781025071000,-3077.7496264,0.0003013,7]
[424640330,1781025072000,-818.35809683,9.19e-05,2]
[424640329,1781025072000,-380.28785241,9.19e-05,2]
[424640332,1781025072000,-5000.0,9.2e-05,2]
[424640333,1781025072000,-5000.0,9.2e-05,2]
[424640331,1781025072000,-2189.15167047,9.19e-05,2]
[424640337,1781025072000,-150.0,0.00016386,2]
[424640339,1781025072000,-519.94,0.00021701,2]
[424640340,1781025072000,-752.3698254,0.00022834,2]
[424640338,1781025072000,-519.94,0.0002,2]
[424640334,1781025072000,-160.0,0.00015683,2]
[424640336,1781025072000,-752.399003,0.00015683,2]
[424640335,1781025072000,-456.199501,0.00015683,2]
[424640341,1781025074000,368.83,0.00028908,120]
[424640348,1781025169000,2233.4660565,0.00021117,120]
[424640347,1781025169000,2233.4660565,0.00021,120]
[424640350,1781025169000,2233.4660565,0.0002135,120]
[424640349,1781025169000,2233.4660565,0.00021233,120]
[424640351,1781025171000,2233.4660565,0.00021467,120]
[424640352,1781025171000,2233.4660565,0.00021583,120]
[424640353,1781025172000,2233.4660565,0.000217,120]
[424640356,1781025174000,2083.4660565,0.0002205,120]
[424640355,1781025174000,2233.4660565,0.00021933,120]
[424640354,1781025174000,2233.4660565,0.00021817,120]
[424640357,1781025194000,347.92,0.00029863,120]
[424640362,1781025203000,701.8,0.00030136,120]
[424640363,1781025208000,500.0,0.0002996,120]
[424640364,1781025253000,532.31,0.00029863,120]
[424640369,1781025306000,159.0,0.00027668,120]
[424640370,1781025308000,159.0,0.00029052,120]
[424640371,1781025331000,167.0,0.00026236,120]
[424640372,1781025333000,167.0,0.00027548,120]
[424640373,1781025334000,167.0,0.00028926,120]
[424640379,1781025385000,326.83367186,0.00030137,120]
[424640394,1781025600000,273.33882656,0.00024511,120]
[424640395,1781025607000,161.0,0.0002754,120]
[424640397,1781025610000,161.0,0.00028917,120]
[424640396,1781025610000,500.0,0.0003013,120]
[424640402,1781025634000,168.0,0.00026199,120]
[424640403,1781025636000,168.0,0.00027509,120]
[424640404,1781025637000,168.0,0.00028885,120]
[424640405,1781025685000,150.0,0.00011233,120]
[424640407,1781025802000,500.0,0.00029862,120]
[424640412,1781025993000,840.46,0.00030082,120]
[424640414,1781026022000,632.26,0.00028266,120]
[424640413,1781026022000,632.26,0.00028266,120]
[424640415,1781026022000,632.26,0.00028266,120]
[424640417,1781026023000,632.2621222,0.00028266,120]
[424640416,1781026023000,632.26,0.00028266,120]
[424640420,1781026151000,-448.54,7.005e-05,2]
[424640423,1781026151000,-250.0,7.039e-05,2]
[424640421,1781026151000,-250.0,7.016e-05,2]
[424640425,1781026151000,-1211.71087732,7.049e-05,2]
[424640426,1781026151000,-1144.31312822,7.05e-05,2]
[424640427,1781026151000,-2497.1035451,7.05e-05,2]
[424640424,1781026151000,-300.0,7.049e-05,2]
[424640422,1781026151000,-150.0,7.027e-05,2]
[424640432,1781026176000,-2053.78996012,7.05e-05,2]
[424640431,1781026176000,-2679.59735655,7.05e-05,2]
[424640429,1781026176000,-400.0,6.9e-05,2]
[424640430,1781026176000,-600.0,7e-05,2]
[424640428,1781026176000,-200.0,6.8e-05,2]
[424640434,1781026201000,-3998.26510288,6.974e-05,2]
[424640435,1781026202000,-3165.53948387,6.974e-05,2]
[424640436,1781026204000,164.00329593,0.00025503,120]
[424640437,1781026211000,393.0,0.00026696,120]
[424640439,1781026213000,393.0,0.00029432,120]
[424640438,1781026213000,393.0,0.00028031,120]
[424640441,1781026226000,500.0,0.00028266,120]
[424640440,1781026226000,500.0,0.00028266,120]
[424640443,1781026227000,500.0,0.00028266,120]
[424640442,1781026227000,500.0,0.00028266,120]
[424640444,1781026228000,358.23351365,0.00028266,120]
[424640455,1781026231000,-6086.51420931,6.974e-05,2]
[424640456,1781026231000,-2000.0,6.974e-05,2]
[424640454,1781026231000,-1028.29474345,6.974e-05,2]
[424640452,1781026231000,-471.84604647,6.974e-05,2]
[424640453,1781026231000,-426.63869522,6.974e-05,2]
[424640464,1781026232000,-613.04286399,7.099e-05,2]
[424640461,1781026232000,-885.48518117,7.05e-05,2]
[424640463,1781026232000,-150.0,7.079e-05,2]
[424640462,1781026232000,-160.0,7.067e-05,2]
[424640466,1781026232000,-150.0,7.149e-05,2]
[424640458,1781026232000,-385.95917116,6.974e-05,2]
[424640467,1781026232000,-150.0,7.219e-05,2]
[424640459,1781026232000,-250.0,7.012e-05,2]
[424640457,1781026232000,-285.91254764,6.974e-05,2]
[424640460,1781026232000,-2452.08082884,7.05e-05,2]
[424640468,1781026232000,-1806.32,7.222e-05,2]
[424640465,1781026232000,-221.76713601,7.099e-05,2]
[424640470,1781026232000,-227.0,7.359e-05,2]
[424640469,1781026232000,-150.0,7.289e-05,2]
[424640481,1781026232000,-1702.63006241,7.471e-05,2]
[424640479,1781026232000,-1022.3911847,7.471e-05,2]
[424640478,1781026232000,-272.12352312,7.471e-05,2]
[424640476,1781026232000,-1642.20766926,7.471e-05,2]
[424640477,1781026232000,-354.00232647,7.471e-05,2]
[424640473,1781026232000,-398.05957444,7.47e-05,2]
[424640472,1781026232000,-601.94042556,7.47e-05,2]
[424640474,1781026232000,-191471.55740937,7.471e-05,2]
[424640471,1781026232000,-151.0,7.468e-05,2]
[424640475,1781026232000,-393.653476,7.471e-05,2]
[424640523,1781026238000,-48938.96195313,9.04e-05,2]
[424640514,1781026238000,-500.0,8.219e-05,2]
[424640513,1781026238000,-2000.0,8.219e-05,2]
[424640515,1781026238000,-166.66,8.379e-05,2]
[424640516,1781026238000,-1600.0,8.434e-05,2]
[424640519,1781026238000,-187.84,8.537e-05,2]
[424640521,1781026238000,-500.0,8.767e-05,2]
[424640518,1781026238000,-500.0,8.493e-05,2]
[424640528,1781026238000,-500.0,9.315e-05,2]
[424640524,1781026238000,-500.0,9.041e-05,2]
[424640527,1781026238000,-172.64,9.284e-05,2]
[424640522,1781026238000,-166.66,8.915e-05,2]
[424640525,1781026238000,-166.66,9.182e-05,2]
[424640511,1781026238000,-166.66,8.111e-05,2]
[424640526,1781026238000,-2000.0,9.247e-05,2]
[424640520,1781026238000,-166.66,8.647e-05,2]
[424640529,1781026238000,-250.0,9.315e-05,2]
[424640530,1781026238000,-1600.0,9.372e-05,2]
[424640517,1781026238000,-150.0,8.493e-05,2]
[424640512,1781026238000,-3053.522299,8.178e-05,2]
[424640506,1781026238000,-10200.0,7.9e-05,2]
[424640508,1781026238000,-1632.442881,7.945e-05,2]
[424640532,1781026238000,-500.0,9.589e-05,2]
[424640492,1781026238000,-1130.0,7.471e-05,2]
[424640491,1781026238000,-475.39991432,7.471e-05,2]
[424640494,1781026238000,-1600.0,7.497e-05,2]
[424640502,1781026238000,-250.0,7.672e-05,2]
[424640503,1781026238000,-3400.0,7.7e-05,2]
[424640493,1781026238000,-1747255.77843435,7.471e-05,2]
[424640496,1781026238000,-151.0,7.57e-05,2]
[424640510,1781026238000,-13700.0,8e-05,2]
[424640499,1781026238000,-521.444,7.571e-05,2]
[424640495,1781026238000,-200.0,7.557e-05,2]
[424640500,1781026238000,-215.89329178,7.645e-05,2]
[424640498,1781026238000,-5987.35,7.571e-05,2]
[424640501,1781026238000,-160.0,7.645e-05,2]
[424640504,1781026238000,-250.0,7.706e-05,2]
[424640505,1781026238000,-6800.0,7.8e-05,2]
[424640507,1781026238000,-1000.0,7.907e-05,2]
[424640509,1781026238000,-8773.85323936,8e-05,2]
[424640497,1781026238000,-151.0,7.57e-05,2]
[424640533,1781026238000,-150.99,9.67e-05,2]
[424640539,1781026238000,-500.0,9.863e-05,2]
[424640534,1781026238000,-9999.99,9.67e-05,2]
[424640557,1781026238000,-500.0,0.00010685,2]
[424640560,1781026238000,-343.66738409,0.00010859,2]
[424640565,1781026238000,-800.0,0.000109,3]
[424640566,1781026238000,-500.0,0.00010958,2]
[424640568,1781026238000,-500.0,0.00010958,2]
[424640561,1781026238000,-6480.25803711,0.000109,2]
[424640559,1781026238000,-3901.04,0.00010779,2]
[424640564,1781026238000,-6480.25803709,0.000109,2]
[424640558,1781026238000,-271.76580193,0.000107,2]
[424640562,1781026238000,-6480.25803709,0.000109,2]
[424640569,1781026238000,-500.0,0.00010958,2]
[424640570,1781026238000,-500.0,0.00010958,2]
[424640572,1781026238000,-500.0,0.00010958,2]
[424640573,1781026238000,-500.0,0.00010958,2]
[424640574,1781026238000,-500.0,0.00010958,2]
[424640571,1781026238000,-500.0,0.00010958,2]
[424640535,1781026238000,-9999.99,9.67e-05,2]
[424640575,1781026238000,-500.0,0.00010958,2]
[424640567,1781026238000,-500.0,0.00010958,2]
[424640556,1781026238000,-3901.04,0.00010529,2]
[424640563,1781026238000,-6480.25803709,0.000109,2]
[424640549,1781026238000,-500.0,0.00010137,2]
[424640531,1781026238000,-166.66,9.45e-05,2]
[424640555,1781026238000,-500.0,0.00010411,2]
[424640541,1781026238000,-2770.07344624,0.0001,2]
[424640537,1781026238000,-999.99,9.67e-05,2]
[424640540,1781026238000,-1955.91819263,0.0001,2]
[424640538,1781026238000,-205.0,9.8e-05,2]
[424640542,1781026238000,-22496.27169349,0.0001,2]
[424640554,1781026238000,-1600.0,0.00010309,2]
[424640546,1781026238000,-3901.04,0.00010027,2]
[424640536,1781026238000,-9999.99,9.67e-05,2]
[424640548,1781026238000,-1966.8872473,0.000101,2]
[424640547,1781026238000,-263.11808268,0.000101,2]
[424640553,1781026238000,-195398.93611564,0.000103,2]
[424640550,1781026238000,-5555.06237168,0.00010209,2]
[424640552,1781026238000,-3901.04,0.00010278,2]
[424640544,1781026238000,-638.17266366,0.0001,2]
[424640551,1781026238000,-2000.0,0.00010274,2]
[424640545,1781026238000,-4659.23125264,0.0001,2]
[424640543,1781026238000,-2028.24271203,0.0001,2]
[424640601,1781026239000,-500.0,0.00011233,2]
[424640614,1781026239000,-151.0,0.00012,2]
[424640612,1781026239000,-6480.25803709,0.00011717,2]
[424640611,1781026239000,-161.50086282,0.0001166,2]
[424640606,1781026239000,-3254.83881287,0.000114,2]
[424640608,1781026239000,-500.0,0.00011507,2]
[424640597,1781026239000,-13763.11503494,0.00011099,2]
[424640603,1781026239000,-166.66,0.00011288,2]
[424640610,1781026239000,-9720.84234887,0.00011599,2]
[424640609,1781026239000,-13763.11503494,0.00011599,2]
[424640613,1781026239000,-151.0,0.00012,2]
[424640622,1781026239000,-186.572462,0.00012203,2]
[424640619,1781026239000,-241.714533,0.00012176,2]
[424640620,1781026239000,-255.237981,0.00012176,2]
[424640617,1781026239000,-298.5,0.00012027,2]
[424640616,1781026239000,-151.0,0.00012,2]
[424640628,1781026239000,-13763.11503494,0.00012424,2]
[424640618,1781026239000,-271.76638,0.00012082,2]
[424640621,1781026239000,-263.439122,0.00012176,2]
[424640623,1781026239000,-183.545745,0.00012203,2]
[424640625,1781026239000,-339.589493,0.00012298,2]
[424640626,1781026239000,-2000.0,0.00012329,2]
[424640604,1781026239000,-2000.0,0.00011301,2]
[424640615,1781026239000,-151.0,0.00012,2]
[424640605,1781026239000,-166.66,0.00011397,2]
[424640582,1781026239000,-181.85216498,0.00010999,2]
[424640607,1781026239000,-166.66,0.00011507,2]
[424640624,1781026239000,-575.24533544,0.00012277,2]
[424640577,1781026239000,-500.0,0.00010958,2]
[424640578,1781026239000,-150.0,0.00010959,2]
[424640579,1781026239000,-150.0,0.00010959,2]
[424640576,1781026239000,-500.0,0.00010958,2]
[424640580,1781026239000,-166.66,0.00010959,2]
[424640581,1781026239000,-500.0,0.00010959,2]
[424640583,1781026239000,-7506.49991501,0.00011,2]
[424640586,1781026239000,-3799.397165,0.00011075,2]
[424640593,1781026239000,-13763.11503494,0.00011099,2]
[424640592,1781026239000,-9720.84234887,0.00011099,2]
[424640598,1781026239000,-166.66,0.00011178,2]
[424640584,1781026239000,-3901.04,0.0001103,2]
[424640588,1781026239000,-9720.84234895,0.00011099,2]
[424640585,1781026239000,-166.66,0.00011068,2]
[424640591,1781026239000,-9720.84234887,0.00011099,2]
[424640589,1781026239000,-9720.84234887,0.00011099,2]
[424640594,1781026239000,-13763.11503494,0.00011099,2]
[424640590,1781026239000,-9720.84234887,0.00011099,2]
[424640595,1781026239000,-13763.11503494,0.00011099,2]
[424640596,1781026239000,-13763.11503494,0.00011099,2]
[424640599,1781026239000,-2028.24271203,0.00011187,2]
[424640602,1781026239000,-1600.0,0.00011246,2]
[424640600,1781026239000,-150.0,0.00011233,2]
[424640587,1781026239000,-500.0,0.00011098,2]
[424640630,1781026239000,-534.74,0.00012478,2]
[424640675,1781026239000,-173.21291421,0.00013563,2]
[424640634,1781026239000,-181.85216497,0.0001295,2]
[424640659,1781026239000,-150.0,0.00013508,2]
[424640661,1781026239000,-173.21291421,0.00013518,2]
[424640660,1781026239000,-150.0,0.00013515,2]
[424640662,1781026239000,-587.60148306,0.00013518,2]
[424640666,1781026239000,-587.60148306,0.00013533,2]
[424640665,1781026239000,-173.21291421,0.00013533,2]
[424640664,1781026239000,-150.0,0.00013528,2]
[424640663,1781026239000,-150.0,0.0001352,2]
[424640667,1781026239000,-150.0,0.00013537,2]
[424640668,1781026239000,-150.0,0.00013542,2]
[424640670,1781026239000,-150.0,0.00013548,2]
[424640658,1781026239000,-150.0,0.00013504,2]
[424640671,1781026239000,-173.21291421,0.00013548,2]
[424640673,1781026239000,-150.0,0.00013553,2]
[424640678,1781026239000,-150.0,0.00013569,2]
[424640676,1781026239000,-587.60148306,0.00013563,2]
[424640672,1781026239000,-587.60148306,0.00013548,2]
[424640674,1781026239000,-166.766445,0.00013559,2]
[424640677,1781026239000,-150.0,0.00013568,2]
[424640679,1781026239000,-150.0,0.00013569,2]
[424640681,1781026239000,-587.60148306,0.00013578,2]
[424640682,1781026239000,-150.0,0.00013585,2]
[424640683,1781026239000,-150.0,0.00013588,2]
[424640631,1781026239000,-5555.06237167,0.00012555,2]
[424640680,1781026239000,-173.21291421,0.00013578,2]
[424640657,1781026239000,-587.60148306,0.00013503,2]
[424640669,1781026239000,-150.0,0.00013545,2]
[424640653,1781026239000,-150.0,0.00013488,2]
[424640656,1781026239000,-173.21291421,0.00013503,2]
[424640632,1781026239000,-6480.25803709,0.00012778,2]
[424640633,1781026239000,-343.66738408,0.0001288,2]
[424640627,1781026239000,-840.46,0.00012329,2]
[424640635,1781026239000,-198.002798,0.00012985,2]
[424640636,1781026239000,-2357.5688013,0.00013,2]
[424640637,1781026239000,-1069.64011697,0.0001305,2]
[424640647,1781026239000,-150.0,0.00013488,2]
[424640638,1781026239000,-13763.11503494,0.0001325,2]
[424640640,1781026239000,-1500.0,0.00013317,2]
[424640643,1781026239000,-150.0,0.00013488,2]
[424640642,1781026239000,-336.693501,0.00013425,2]
[424640629,1781026239000,-9720.84234887,0.00012424,2]
[424640645,1781026239000,-150.0,0.00013488,2]
[424640644,1781026239000,-150.3730817,0.00013488,2]
[424640652,1781026239000,-587.60148306,0.00013488,2]
[424640654,1781026239000,-150.0,0.00013488,2]
[424640651,1781026239000,-150.0,0.00013488,2]
[424640655,1781026239000,-1000.0,0.000135,2]
[424640650,1781026239000,-150.086276,0.00013488,2]
[424640648,1781026239000,-173.21291421,0.00013488,2]
[424640646,1781026239000,-150.0,0.00013488,2]
[424640641,1781026239000,-1030.0,0.00013317,2]
[424640639,1781026239000,-9720.84234887,0.0001325,2]
[424640649,1781026239000,-150.0,0.00013488,2]
[424640739,1781026240000,-500.0,0.00013698,2]
[424640725,1781026240000,-500.0,0.00013698,2]
[424640722,1781026240000,-500.0,0.00013698,2]
[424640717,1781026240000,-173.21291421,0.00013684,2]
[424640720,1781026240000,-500.0,0.00013698,2]
[424640721,1781026240000,-500.0,0.00013698,2]
[424640724,1781026240000,-500.0,0.00013698,2]
[424640719,1781026240000,-150.0,0.00013687,2]
[424640718,1781026240000,-587.60148306,0.00013684,2]
[424640726,1781026240000,-500.0,0.00013698,2]
[424640723,1781026240000,-500.0,0.00013698,2]
[424640728,1781026240000,-287.34212826,0.00013698,2]
[424640733,1781026240000,-500.0,0.00013698,2]
[424640729,1781026240000,-500.0,0.00013698,2]
[424640731,1781026240000,-500.0,0.00013698,2]
[424640730,1781026240000,-500.0,0.00013698,2]
[424640732,1781026240000,-500.0,0.00013698,2]
[424640734,1781026240000,-500.0,0.00013698,2]
[424640736,1781026240000,-500.0,0.00013698,2]
[424640735,1781026240000,-500.0,0.00013698,2]
[424640737,1781026240000,-500.0,0.00013698,2]
[424640740,1781026240000,-500.0,0.00013698,2]
[424640738,1781026240000,-279.46627847,0.00013698,2]
[424640715,1781026240000,-150.0,0.00013678,2]
[424640727,1781026240000,-500.0,0.00013698,2]
[424640716,1781026240000,-150.0,0.00013683,2]
[424640687,1781026240000,-587.60148306,0.00013594,2]
[424640709,1781026240000,-587.60148306,0.00013654,2]
[424640686,1781026240000,-173.21291421,0.00013594,2]
[424640688,1781026240000,-150.0,0.00013597,2]
[424640690,1781026240000,-150.0,0.00013603,2]
[424640701,1781026240000,-150.0,0.00013634,2]
[424640700,1781026240000,-150.0,0.00013628,2]
[424640689,1781026240000,-150.0,0.00013602,2]
[424640691,1781026240000,-150.0,0.00013608,2]
[424640692,1781026240000,-173.21291421,0.00013609,2]
[424640695,1781026240000,-150.0,0.00013618,2]
[424640699,1781026240000,-587.60148306,0.00013624,2]
[424640698,1781026240000,-173.21291421,0.00013624,2]
[424640714,1781026240000,-587.60148306,0.00013669,2]
[424640693,1781026240000,-587.60148306,0.00013609,2]
[424640702,1781026240000,-173.21291421,0.00013639,2]
[424640704,1781026240000,-150.0,0.00013648,2]
[424640703,1781026240000,-587.60148306,0.00013639,2]
[424640706,1781026240000,-150.0,0.00013651,2]
[424640707,1781026240000,-173.21291421,0.00013654,2]
[424640705,1781026240000,-150.0,0.00013651,2]
[424640708,1781026240000,-150.0,0.00013654,2]
[424640712,1781026240000,-150.0,0.00013668,2]
[424640711,1781026240000,-150.0,0.00013667,2]
[424640713,1781026240000,-173.21291421,0.00013669,2]
[424640710,1781026240000,-150.0,0.00013661,2]
[424640697,1781026240000,-150.0,0.00013624,2]
[424640741,1781026240000,-500.0,0.00013698,2]
[424640756,1781026240000,-500.0,0.00013698,2]
[424640745,1781026240000,-500.0,0.00013698,2]
[424640776,1781026240000,-500.0,0.00013698,2]
[424640775,1781026240000,-500.0,0.00013698,2]
[424640777,1781026240000,-500.0,0.00013698,2]
[424640773,1781026240000,-500.0,0.00013698,2]
[424640779,1781026240000,-500.0,0.00013698,2]
[424640780,1781026240000,-500.0,0.00013698,2]
[424640778,1781026240000,-500.0,0.00013698,2]
[424640781,1781026240000,-500.0,0.00013698,2]
[424640782,1781026240000,-632.26,0.00013698,2]
[424640791,1781026240000,-632.26,0.00013698,2]
[424640785,1781026240000,-632.26,0.00013698,2]
[424640772,1781026240000,-500.0,0.00013698,2]
[424640792,1781026240000,-632.26,0.00013698,2]
[424640789,1781026240000,-632.26,0.00013698,2]
[424640788,1781026240000,-632.26,0.00013698,2]
[424640783,1781026240000,-632.26,0.00013698,2]
[424640790,1781026240000,-632.26,0.00013698,2]
[424640784,1781026240000,-632.26,0.00013698,2]
[424640793,1781026240000,-500.0,0.00013698,2]
[424640794,1781026240000,-500.0,0.00013698,2]
[424640795,1781026240000,-500.0,0.00013698,2]
[424640797,1781026240000,-500.0,0.00013698,2]
[424640796,1781026240000,-500.0,0.00013698,2]
[424640742,1781026240000,-500.0,0.00013698,2]
[424640787,1781026240000,-632.26,0.00013698,2]
[424640774,1781026240000,-500.0,0.00013698,2]
[424640786,1781026240000,-632.26,0.00013698,2]
[424640767,1781026240000,-500.0,0.00013698,2]
[424640771,1781026240000,-500.0,0.00013698,2]
[424640744,1781026240000,-500.0,0.00013698,2]
[424640746,1781026240000,-500.0,0.00013698,2]
[424640748,1781026240000,-500.0,0.00013698,2]
[424640747,1781026240000,-500.0,0.00013698,2]
[424640749,1781026240000,-500.0,0.00013698,2]
[424640754,1781026240000,-500.0,0.00013698,2]
[424640751,1781026240000,-500.0,0.00013698,2]
[424640760,1781026240000,-500.0,0.00013698,2]
[424640759,1781026240000,-500.0,0.00013698,2]
[424640750,1781026240000,-500.0,0.00013698,2]
[424640752,1781026240000,-500.0,0.00013698,2]
[424640753,1781026240000,-500.0,0.00013698,2]
[424640743,1781026240000,-500.0,0.00013698,2]
[424640763,1781026240000,-500.0,0.00013698,2]
[424640755,1781026240000,-500.0,0.00013698,2]
[424640757,1781026240000,-500.0,0.00013698,2]
[424640762,1781026240000,-500.0,0.00013698,2]
[424640761,1781026240000,-500.0,0.00013698,2]
[424640764,1781026240000,-500.0,0.00013698,2]
[424640765,1781026240000,-500.0,0.00013698,2]
[424640766,1781026240000,-500.0,0.00013698,2]
[424640758,1781026240000,-500.0,0.00013698,2]
[424640770,1781026240000,-500.0,0.00013698,2]
[424640769,1781026240000,-500.0,0.00013698,2]
[424640768,1781026240000,-506.76604741,0.00013698,2]
[424640840,1781026241000,-3751.0,0.00013698,2]
[424640832,1781026241000,-3751.0,0.00013698,2]
[424640844,1781026241000,-500.0,0.00013698,2]
[424640846,1781026241000,-3751.0,0.00013698,2]
[424640837,1781026241000,-500.0,0.00013698,2]
[424640835,1781026241000,-500.0,0.00013698,2]
[424640842,1781026241000,-3751.0,0.00013698,2]
[424640839,1781026241000,-500.0,0.00013698,2]
[424640838,1781026241000,-3751.0,0.00013698,2]
[424640848,1781026241000,-3751.0,0.00013698,2]
[424640845,1781026241000,-500.0,0.00013698,2]
[424640841,1781026241000,-500.0,0.00013698,2]
[424640847,1781026241000,-500.0,0.00013698,2]
[424640854,1781026241000,-500.0,0.00013698,2]
[424640849,1781026241000,-500.0,0.00013698,2]
[424640851,1781026241000,-500.0,0.00013698,2]
[424640861,1781026241000,-500.0,0.00013698,2]
[424640853,1781026241000,-500.0,0.00013698,2]
[424640857,1781026241000,-500.0,0.00013698,2]
[424640852,1781026241000,-3751.0,0.00013698,2]
[424640856,1781026241000,-500.0,0.00013698,2]
[424640855,1781026241000,-500.0,0.00013698,2]
[424640850,1781026241000,-3751.0,0.00013698,2]
[424640859,1781026241000,-500.0,0.00013698,2]
[424640858,1781026241000,-500.0,0.00013698,2]
[424640843,1781026241000,-500.0,0.00013698,2]
[424640833,1781026241000,-3751.0,0.00013698,2]
[424640803,1781026241000,-500.0,0.00013698,2]
[424640836,1781026241000,-3751.0,0.00013698,2]
[424640860,1781026241000,-500.0,0.00013698,2]
[424640802,1781026241000,-500.0,0.00013698,2]
[424640798,1781026241000,-500.0,0.00013698,2]
[424640801,1781026241000,-500.0,0.00013698,2]
[424640800,1781026241000,-500.0,0.00013698,2]
[424640799,1781026241000,-500.0,0.00013698,2]
[424640804,1781026241000,-500.0,0.00013698,2]
[424640806,1781026241000,-500.0,0.00013698,2]
[424640809,1781026241000,-500.0,0.00013698,2]
[424640808,1781026241000,-500.0,0.00013698,2]
[424640807,1781026241000,-500.0,0.00013698,2]
[424640812,1781026241000,-500.0,0.00013698,2]
[424640810,1781026241000,-500.0,0.00013698,2]
[424640805,1781026241000,-500.0,0.00013698,2]
[424640816,1781026241000,-500.0,0.00013698,2]
[424640814,1781026241000,-500.0,0.00013698,2]
[424640818,1781026241000,-500.0,0.00013698,2]
[424640819,1781026241000,-500.0,0.00013698,2]
[424640820,1781026241000,-500.0,0.00013698,2]
[424640823,1781026241000,-500.0,0.00013698,2]
[424640834,1781026241000,-3751.0,0.00013698,2]
[424640825,1781026241000,-500.0,0.00013698,2]
[424640831,1781026241000,-3751.0,0.00013698,2]